Cogmind - Beta 13 X1 @@@ ROGUE MODE // 2023.08.02 @ 23:28:26 Player: Exp. Geonium Core Result: Destroyed by 23-IAY(R) with Subdweller Laser Performance ------------- Evolutions (0) 0 Regions Visited (2) 400 Robots Destroyed (7) 35 Value Destroyed (282) 282 Prototype IDs (0) 0 Alien Tech Used (0) 0 Bonus (0) 0 TOTAL SCORE: 717 Bonus ------- None Cogmind --------- Core Integrity 0/250 Matter 191/300 Energy 250/250 System Corruption 2% Temperature Cool (6) Movement Treading (160) Location -10/Subcaves Parts ------- > --- POWER (1) -------- Ion Engine > --- PROPULSION (2) --- Light Treads Light Treads > --- UTILITY (2) ------ Improved Heat Sink Small Storage Unit > --- WEAPON (2) ------- Assault Rifle (fused) > --- INVENTORY (8) ---- Wheel Wheel Assault Rifle Assault Rifle Peak State ------------ > --- POWER ------------ Ion Engine > --- PROPULSION ------- Light Treads Light Treads > --- UTILITY ---------- Improved Heat Sink Small Storage Unit > --- WEAPON ----------- Subdweller Beam Cannon Battle Rifle > --- INVENTORY -------- Wheel Wheel Assault Rifle Assault Rifle [Rating: 11] Favorites ----------- Power Ion Engine Engine Ion Engine Propulsion Light Treads Treads Light Treads Leg Aluminum Leg Utility Small Storage Unit Device Improved Heat Sink Storage Small Storage Unit Weapon Assault Rifle Energy Cannon Subdweller Beam Cannon Ballistic Gun Assault Rifle Build | -11 -10 -10 ------- Run | Jun Mat Sub Slots Evolved . | . . . Power . | . . . Propulsion . | . . . Utility . | . . . Weapon . | . . . Parts Attached 16 | . 6 10 Power 3 | . 2 1 Engine 3 | . 2 1 Core . | . . . Reactor . | . . . Propulsion 5 | . 1 4 Treads 4 | . . 4 Leg 1 | . 1 . Wheel . | . . . Hover . | . . . Flight . | . . . Utility 2 | . 2 . Device 2 | . 2 . Storage . | . . . Processor . | . . . Hackware . | . . . Protection . | . . . Artifact . | . . . Weapon 6 | . 1 5 Energy Gun . | . . . Energy Cannon 1 | . . 1 Ballistic Gun 5 | . 1 4 Ballistic Cannon . | . . . Launcher . | . . . Special Weapon . | . . . Impact Weapon . | . . . Slashing Weapon . | . . . Piercing Weapon . | . . . Special Melee Weapon . | . . . Unidentified Prototypes . | . . . Parts Lost 5 | . . 5 Power 1 | . . 1 Propulsion 1 | . . 1 Utility . | . . . Weapon 3 | . . 3 Highest Loss Streak 3 | . . 3 To Critical Strikes . | . . . Average Slot Usage (%) 95 | . 92 96 Engine 14 | . 14 14 Treads 17 | . . 23 Leg 10 | . 28 4 Device 12 | . 7 14 Storage 14 | . 14 14 Ballistic Gun 26 | . 28 25 Naked Turns . | . . . Heaviest Build 15 | 13 15 15 Greatest Support 40 | 20 20 40 Greatest Overweight (x) 1 | . 1 . Average Overweight (x) . | . . . Largest Inventory Capacity 8 | . 8 8 Average Capacity 8 | . 8 8 Most Carried 8 | . 8 8 Average Carried 5 | . 7 4 Final Capacity 8 | 8 8 8 Final Carried 8 | 6 8 4 Class Distribution -------------------- 100% | Mutant Dominant Class ---------------- Mutant | -10/Materials Mutant | -10/Subcaves Resources | -11 -10 -10 ----------- Run | Jun Mat Sub Matter Collected 435 | 200 80 155 Remotely . | . . . Salvage Created 316 | . 183 133 Parts 13 | . 6 7 Haulers Intercepted . | . . . Recyclers Shooed . | . . . Parts Field Recycled . | . . . Retrieved Matter . | . . . Parts Self-Destructed 3 | . . 3 Prevented . | . . . Kills | -11 -10 -10 ------- Run | Jun Mat Sub Combat Hostiles Destroyed 7 | . 4 3 Guns 7 | . 4 3 Classes Destroyed 2 | . 1 1 Grunt 4 | . 4 . Subdweller 3 | . . 3 Best Kill Streak 2 | . 2 2 Combat Bots Only 2 | . 2 2 Max Kills in Single Turn 1 | . 1 1 Gunslinging . | . . . Exploded . | . . . Melee . | . . . Uniques/NPCs Destroyed . | . . . Combat | -11 -10 -10 -------- Run | Jun Mat Sub Damage Taken 1204 | . 270 934 Core 263 | . 93 170 Absorbed by Shields . | . . . Core Remaining (%) 100 | 100 . . Volleys Fired 37 | . 14 23 Largest 2 | . 2 2 Hottest 45 | . 40 45 Shots Fired 67 | . 28 39 Gun 67 | . 28 39 Cannon . | . . . Launcher . | . . . Special . | . . . Kinetic 67 | . 28 39 Thermal . | . . . Explosive . | . . . Electromagnetic . | . . . Robot Hit Streak 23 | . 5 23 Robot Miss Streak 2 | . 2 1 Penetration Max . | . . . Secondary Targets . | . . . Shots Hit Robots 50 | . 17 33 Core Hits 18 | . 10 8 Critical Kills . | . . . Critical Parts Destroyed . | . . . Critical Strikes . | . . . Melee Attacks . | . . . Impact . | . . . Slashing . | . . . Piercing . | . . . Sneak Attacks . | . . . Combat Hostiles . | . . . Follow-up Attacks . | . . . Damage Inflicted 600 | . 220 380 Guns 596 | . 216 380 Cannons . | . . . Explosions . | . . . Melee . | . . . Ramming 4 | . 4 . Kinetic 596 | . 216 380 Thermal . | . . . Explosive . | . . . Electromagnetic . | . . . Impact . | . . . Slashing . | . . . Piercing . | . . . Highest Corruption 2 | . 2 2 Average Corruption 1 | . 1 2 Corruption Purged . | . . . Corruption Blocked . | . . . Effects 16 | . . 16 Message Errors 6 | . . 6 Matter Fused 2 | . . 2 Heat Flow Errors 1 | . . 1 Energy Discharges 1 | . . 1 Parts Rejected 1 | . . 1 Parts Fused 1 | . . 1 Data Loss (minor) 3 | . . 3 Misfires 1 | . . 1 Overload Shots . | . . . Overflow Damage . | . . . Projectiles . | . . . Explosions . | . . . Melee . | . . . Knockbacks . | . . . Impact . | . . . Kinetic . | . . . Secondary . | . . . Self-Inflicted Damage . | . . . Shots . | . . . Rammed . | . . . Targets Rammed 3 | . 3 . Kicked 3 | . 3 . Crushed . | . . . Highest Temperature 173 | . 2 173 Average Temperature 48 | . 2 94 Received Heat Transfer 336 | . 156 180 Siege Activations . | . . . Robots Corrupted . | . . . Combat Hostiles . | . . . Parts Fried . | . . . Impact Corruptions . | . . . Robots Melted . | . . . Combat Hostiles . | . . . Parts Melted . | . . . Heat Transferred . | . . . Parts Sabotaged . | . . . Parts Stolen . | . . . Parts Stripped . | . . . Power Chain Reactions . | . . . Missiles Intercepted . | . . . Alert | -11 -10 -10 ------- Run | Jun Mat Sub Peak Influence 130 | . 130 . Initial . | . . . Average 73 | . 73 . Maximum Alert Level . | . . . Low Security (%) 100 | . 100 . Level 1 . | . . . Level 2 . | . . . Level 3 . | . . . Level 4 . | . . . Level 5 . | . . . High Security . | . . . Max Security . | . . . Squads Dispatched . | . . . Investigation . | . . . Extermination . | . . . Reinforcement . | . . . Assault . | . . . Garrison . | . . . Intercept . | . . . Searches Triggered . | . . . Construction Impeded . | . . . Haulers Reinforced . | . . . Active Scanning Responses . | . . . Cargo Convoy Interrupts . | . . . Stealth | -11 -10 -10 --------- Run | Jun Mat Sub Distress Signals . | . . . Communications Jammed . | . . . Distress Signals . | . . . Times Spotted 10 | . 6 4 Peak Tracking Total 3 | . 3 2 Tactical Retreats . | . . . Traps | -11 -10 -10 ------- Run | Jun Mat Sub Traps Triggered 5 | . 3 2 Indirectly . | . . . Trap Hack Attempts . | . . . Triggered . | . . . Disarmed . | . . . Reprogrammed . | . . . Reused . | . . . Traps Extracted . | . . . Installed . | . . . Triggered . | . . . Machines | -11 -10 -10 ---------- Run | Jun Mat Sub Machines Disabled . | . . . Max in Single Turn . | . . . Machines Repaired . | . . . Machines Sabotaged . | . . . Overloaded Fab Kills . | . . . Hacking | -11 -10 -10 --------- Run | Jun Mat Sub Machines Accessed 1 | . . 1 Terminals . | . . . Fabricators . | . . . Repair Stations . | . . . Recycling Units . | . . . Scanalyzers . | . . . Garrison Access . | . . . Total Hacks 1 | . . 1 Successful 1 | . . 1 Failed . | . . . Catastrophic . | . . . Database Lockouts . | . . . Manual . | . . . Terminals . | . . . Fabricators . | . . . Repair Stations . | . . . Recycling Units . | . . . Scanalyzers . | . . . Garrison Access . | . . . Terminal Hacks 1 | . . 1 Record 1 | . . 1 Fabricator Hacks . | . . . Repair Station Hacks . | . . . Recycling Unit Hacks . | . . . Scanalyzer . | . . . Garrison Access Hacks . | . . . Unauthorized Hacks . | . . . Terminals . | . . . Fabricators . | . . . Repair Stations . | . . . Recycling Units . | . . . Scanalyzers . | . . . Garrison Access . | . . . Data Cores Recovered . | . . . Used . | . . . Hacking Detections . | . . . Full Trace Events . | . . . Feedback Events . | . . . Feedback Blocked . | . . . Robot Schematics Acquired . | . . . Robots Built . | . . . Authchips . | . . . Time . | . . . Total Robot Build Rating . | . . . Part Schematics Acquired . | . . . Parts Built . | . . . Authchips . | . . . Time . | . . . Total Part Build Rating . | . . . Parts Repaired . | . . . Time . | . . . Parts Recycled . | . . . Recycled Matter . | . . . Retrieved Matter . | . . . Retrieved Components . | . . . Parts Scanalyzed . | . . . Part Schematics Acquired . | . . . Parts Damaged . | . . . Bothacking | -11 -10 -10 ------------ Run | Jun Mat Sub Used RIF Installer . | . . . Robots Hacked . | . . . Non-combat . | . . . Combat . | . . . Robot Hacks Applied . | . . . Relay Couplers Released . | . . . Fabnet Peak Effective % . | . . . Robots Rewired . | . . . Allies Hacked . | . . . Hacks Repelled . | . . . Allies | -11 -10 -10 -------- Run | Jun Mat Sub Total Allies . | . . . Largest Group . | . . . Highest-Rated Group . | . . . Highest-Rated Ally . | . . . Total Orders . | . . . Ally Attacks . | . . . Total Damage . | . . . Kills . | . . . Allies Corrupted . | . . . Allies Melted . | . . . Intel | -11 -10 -10 ------- Run | Jun Mat Sub Robot Analysis Total . | . . . Derelict Logs Recovered . | . . . Drone Launches . | . . . Drone Recoveries . | . . . Exploration | -11 -10 -10 ------------- Run | Jun Mat Sub Turns Passed 1117 | . 273 844 Spaces Moved 626 | 1 119 506 Core . | . . . Treads 400 | . . 400 Legs 226 | 1 119 106 Wheels . | . . . Hover . | . . . Flight . | . . . Fastest Speed 120 | 120 120 120 Average Speed 145 | 120 120 151 Slowest Speed 190 | 120 190 160 Overloaded Moves . | . . . Propulsion Burnouts . | . . . Robots Hopped . | . . . Cave-ins Triggered . | . . . Exploration Rate (%) 26 | 2 36 41 Regions Visited 2 Branch Regions 1 Pre-discovered Areas . | . . . Known Exits Taken . | . . . Unknown Exits Taken 2 | 1 1 . Scrap Searched 1 | . . 1 Spaces Dug . | . . . Terrain Destroyed . | . . . Melee . | . . . Projectile . | . . . AOE . | . . . Terrain Rammed . | . . . Walls Destroyed . | . . . Machines Disabled . | . . . Actions | -11 -10 -10 --------- Run | Jun Mat Sub Total 763 | . 220 543 Wait 74 | . 74 . Move 624 | . 118 506 Hop . | . . . Pick Up 2 | . 2 . Fast Attach 7 | . 3 4 Attach 5 | . . 5 Detach . | . . . Swap 4 | . 3 1 Drop 7 | . 3 4 Fire 37 | . 14 23 Melee . | . . . Ram . | . . . Kick 3 | . 3 . Crush . | . . . Escape Stasis . | . . . Rewire . | . . . Trap . | . . . Miscellaneous . | . . . Route ------- -11/Junkyard -10/Materials (discovered 3 exits: [*Mat] / [*Min] / *Sub) -10/Subcaves History --------- Turn | Location | Event 1 | -11/Junkyard | Discovered new exit (range 0) 1 | -11/Junkyard | Entered Materials 30 | -10/Materials | Discovered new exit (range 15) 78 | -10/Materials | Discovered new exit (range 13) 256 | -10/Materials | Discovered new exit (range 5) 274 | -10/Materials | Entered Subcaves 314 | -10/Subcaves | Build established: Mutant 370 | -10/Subcaves | Visited Clippyterm 391 | -10/Subcaves | Shifting Twisted Machinery released Sub. Monowheel 396 | -10/Subcaves | Shifting Twisted Machinery released Flamer 446 | -10/Subcaves | Core integrity fell below 50% 499 | -10/Subcaves | Lost 3 parts (1p1n1w) 794 | -10/Subcaves | Shifting Twisted Machinery released Battle Rifle 806 | -10/Subcaves | Shifting Twisted Machinery released Sub. Beam Cannon 1095 | -10/Subcaves | Core integrity fell below 20% 1118 | -10/Subcaves | Destroyed by 23-IAY(R) with Subdweller Laser Last Messages --------------- 00563_ JMFOJSWZMRTHSRXZ Battle Rifle falls loose from the Twisted Machinery. 00795_ ZS0,NI I#OWF#HIYYL1FXERX68LM Sub. Beam Cannon falls loose from the Twisted Machinery. 00820_ Dropped Assault Rifle. 00821_ Acquired Sub. Beam Cannon. 00822_ Dropped Sub. Beam Cannon. 00824_ Acquired Assault Rifle. 00832_ System corrupted: FCS attempts to trigger Assault Rifle. 00832_ System corrupted: Assault Rifle misfires. 00849_ System corrupted: Energy discharge (-50). 00940_ System corrupted: Assault Rifle fused. 01066_ System corrupted: Component data lost. 01102_ Battle Rifle destroyed. 01108_ 4J-ZV6(R) destroyed. 01110_ Acquired 55 matter. Map ----- +----------------------------------------------------+ | ?????????????????????????? ?????# | | ?????????????????????????#### ?????##### | | ????????????????????????????##??????????## ## | | ?????????????????????????????????????????# #### | | ?????????????????????????????????????????# #??## | | ?????????????????????????????????????????###### | | ????????????????????????????????????????##### | | ???????????????????????????????????????## ## | | ?????????????????????????????????????### ## | | ?????????????????????????????????????# #### | | ?????????????????????????????????????# ## #??# | | ?????????????????????????????????????# ##### #??? | | ????????????????????????????????##??## ##?###??? | | ???????????????????????????????## ## ######## | | ???????????????????????????????# # ## | | ???????????????????????????????# | | ???????????????????????????????# | | ???????????????????????????????### ### ##### | | ???????????????????????????